bitfinex-derivatives/quotes_ETHF0:USTF0_20240905
["timestamp","ask_amount","ask_price","bid_price","bid_amount"]
[1725548731714,3.21410902,2381.3,2380.1,0.42646902]
[1725548731914,0.42001,2381.0,2380.2,0.42015]
[1725548732117,3.21410902,2381.3,2380.2,0.42015]
[1725548732322,3.21410902,2381.3,2380.2,4.55]
[1725548732625,3.21410902,2381.3,2380.1,0.00630902]
[1725548732626,0.42009,2380.6,2380.1,0.00630902]
[1725548732823,0.42009,2380.6,2380.1,3.21410902]
[1725548733027,0.4201,2380.5,2380.1,3.21410902]
[1725548733220,1.04994,2381.2,2380.1,0.00630902]
[1725548733221,0.42015,2380.2,2380.1,0.00630902]
[1725548733727,0.42015,2380.2,2379.2,3.2078]
[1725548733728,0.42022,2379.8,2379.2,3.2078]
[1725548733928,13.87296392,2380.2,2379.0,0.21433855]
[1725548733929,0.42024,2379.7,2379.0,0.63468855]
[1725548734114,0.42024,2379.7,2379.2,3.2078]
[1725548734320,1.0502,2380.7,2379.2,3.2078]
[1725548734321,3.2078,2379.9,2379.2,3.2078]
[1725548734528,3.2078,2379.9,2379.3,0.00630902]
[1725548734529,0.00630902,2379.8,2379.3,0.00630902]
[1725548734726,0.00630902,2379.8,2379.3,3.21410902]
[1725548734928,0.00630902,2379.8,2379.7,3.2078]
[1725548735233,0.00630902,2379.8,2379.3,0.00630902]
[1725548735416,0.00630902,2379.8,2379.7,3.2078]
[1725548736123,0.00630902,2379.8,2379.4,3.2078]
[1725548736428,0.00630902,2379.8,2379.3,0.00630902]
[1725548736619,0.42029,2379.4,2379.3,0.00630902]
[1725548737017,0.42025,2379.7,2379.3,0.00630902]
[1725548737217,0.42027,2379.5,2379.3,0.00630902]
[1725548737423,1.14270902,2379.8,2379.3,0.00630902]
[1725548737727,0.42029,2379.4,2379.3,0.00630902]
[1725548738120,1.05078,2379.3,2378.4,7.73225]
[1725548738331,0.42032,2379.3,2378.8,0.4204]
[1725548738526,0.4203,2379.4,2378.9,0.42037]
[1725548738730,3.2078,2379.6,2378.8,0.4204]
[1725548739030,0.42034,2379.1,2379.0,0.00630902]
[1725548739220,3.2078,2379.4,2378.2,7.7578]
[1725548739418,3.2078,2379.4,2378.5,7.7578]
[1725548739617,1.1375,2379.7,2379.0,0.42035]
[1725548739618,0.42028,2379.5,2379.0,0.42035]
[1725548739826,1.1375,2379.7,2379.4,0.42028]
[1725548740026,0.42024,2379.7,2379.0,3.2078]
[1725548740224,1.14270902,2379.8,2379.0,3.2078]
[1725548740524,0.42035,2379.1,2378.5,7.7578]
[1725548740822,3.2078,2379.7,2378.5,7.7578]
[1725548741028,1.14270902,2379.8,2378.8,3.2078]
[1725548741324,1.14270902,2379.8,2378.9,4.55]
[1725548741627,1.14270902,2379.8,2379.2,0.42032]
[1725548741826,0.42024,2379.7,2379.2,0.42031]
[1725548742030,1.14270902,2379.8,2379.1,3.2078]
[1725548742232,1.14270902,2379.8,2379.5,0.42026]
[1725548742432,1.56292902,2379.8,2379.4,0.42028]
[1725548742725,1.14270902,2379.8,2379.1,3.2078]
[1725548743121,0.00630902,2379.8,2379.6,0.42024]
[1725548743315,0.00630902,2379.8,2379.2,4.55]
[1725548743531,0.00630902,2379.8,2379.5,0.42026]
[1725548743827,0.42026,2379.6,2379.2,0.42032]
[1725548744216,0.00630902,2379.8,2379.3,0.4203]
[1725548744217,0.42025,2379.7,2379.3,0.4203]
[1725548744631,0.00630902,2379.8,2379.5,0.42027]
[1725548744827,0.00630902,2379.8,2379.7,0.42024]
[1725548745227,0.42011,2380.5,2379.7,7.4102]
[1725548745525,4.3428,2380.8,2380.1,0.42015]
[1725548745729,1.135,2380.8,2380.0,7.96677286]
[1725548745927,1.55505,2380.8,2380.4,0.42011]
[1725548746119,4.3428,2380.8,2380.2,3.5]
[1725548746324,0.00630902,2380.7,2380.3,0.00630902]
[1725548746528,0.42011,2380.4,2380.3,0.00630902]
[1725548747032,11.6712,2380.4,2380.3,0.00630902]
[1725548747328,0.00630902,2380.7,2380.3,0.00630902]
[1725548747521,0.42637902,2380.7,2380.3,0.00630902]
[1725548747828,0.00630902,2380.7,2380.3,0.00630902]
[1725548748335,0.42009,2380.6,2380.3,0.00630902]
[1725548748518,0.42008,2380.6,2380.4,3.2078]
[1725548748827,0.4201,2380.5,2380.4,3.2078]
[1725548749028,0.42009,2380.6,2380.3,0.00630902]
[1725548749225,0.42637902,2380.7,2380.3,0.42643902]
[1725548749424,0.00630902,2380.7,2380.6,0.42008]
[1725548749725,0.00630902,2380.7,2380.6,4.62088]
[1725548749925,0.00630902,2380.7,2380.3,4.55630902]
[1725548750127,0.00630902,2380.7,2380.4,4.2008]
[1725548750325,0.00630902,2380.7,2380.6,0.42008]
[1725548750631,0.42637902,2380.7,2380.5,3.2078]
[1725548750834,0.00630902,2380.7,2380.3,0.00630902]
[1725548751334,0.00630902,2380.7,2380.4,0.42011]
[1725548751629,0.00630902,2380.7,2380.3,4.55630902]
[1725548751630,0.42008,2380.6,2380.3,0.42642902]
[1725548751824,0.00630902,2380.7,2380.3,0.00630902]
[1725548752026,0.00630902,2380.7,2380.5,0.42009]
[1725548752232,0.42637902,2380.7,2380.4,0.42011]
[1725548752430,0.00630902,2380.7,2380.3,0.00630902]
[1725548752629,0.42011,2380.4,2380.3,0.00630902]
[1725548752831,1.05034,2380.3,2379.4,3.2078]
[1725548753133,2.2354,2380.5,2379.7,3.2078]
[1725548753332,0.00630902,2380.7,2380.3,0.42012]
[1725548753524,0.42636902,2380.7,2380.0,3.2078]
[1725548753831,0.00630902,2380.7,2380.0,3.2078]
[1725548754030,0.00630902,2380.7,2380.1,3.2078]
[1725548754230,0.00630902,2380.7,2380.6,0.42008]
[1725548754738,0.00630902,2380.7,2380.6,9.17088]
[1725548755130,0.00630902,2380.7,2380.4,3.2078]
[1725548755428,0.41995,2381.3,2381.0,0.42]
[1725548755831,0.41996,2381.3,2381.0,0.42]
[1725548756133,3.2078,2381.6,2381.2,0.41996]
[1725548756339,1.1819,2381.8,2380.6,8.80797]
[1725548756541,1.1819,2381.8,2381.2,0.00630902]
[1725548756542,0.00630902,2381.6,2381.2,0.00630902]
[1725548756732,0.41995,2381.3,2381.2,0.00630902]
[1725548757433,0.42006,2380.7,2380.6,3.2078]
[1725548758233,1.04994,2381.2,2380.4,0.42011]
[1725548758439,0.42006,2380.8,2380.5,0.42009]
[1725548758738,0.42006,2380.7,2380.4,0.4201]
[1725548759033,0.42006,2380.7,2380.3,7.7578]
[1725548759034,0.4201,2380.5,2380.3,7.7578]
[1725548759239,0.42011,2380.4,2380.3,3.2078]
[1725548759436,0.42015,2380.3,2380.0,0.42018]
[1725548759632,0.00630902,2380.4,2379.6,8.80842]
[1725548759836,0.00630902,2380.4,2379.9,7.7578]
[1725548760040,1.05659902,2380.4,2379.6,7.7578]
[1725548760229,0.00630902,2380.4,2379.9,0.4202]
[1725548760438,0.00630902,2380.4,2380.0,0.42018]
[1725548760636,0.00630902,2380.4,2380.0,3.2078]
[1725548760637,0.42017,2380.1,2380.0,3.2078]
[1725548760839,1.05047,2380.0,2379.6,4.55]
[1725548761043,0.42017,2380.1,2379.8,0.42021]
[1725548761340,3.21410902,2380.4,2380.0,7.7578]
[1725548761341,0.00630902,2380.4,2380.0,7.7578]
[1725548761737,0.42642902,2380.4,2380.1,0.42015]
[1725548761933,0.00630902,2380.4,2380.3,0.42013]
[1725548762234,0.00630902,2380.4,2380.3,6.02047]
[1725548762439,4.25766,2381.4,2380.8,0.42003]
[1725548762634,2.18738,2381.6,2380.7,0.42005]
[1725548762635,5.39518,2381.6,2380.7,0.42005]
[1725548762840,0.42005,2380.8,2380.3,4.55]
[1725548763041,3.2078,2381.3,2380.2,3.2078]
[1725548763245,0.4201,2380.5,2380.2,0.42014]
[1725548763435,0.4201,2380.5,2380.2,3.62794]
[1725548763635,1.05633902,2381.0,2380.1,0.00630902]
[1725548763636,1.47053,2380.2,2380.1,0.00630902]
[1725548763843,4.62175,2380.2,2380.1,0.00630902]
[1725548764046,0.42028,2379.5,2379.2,4.55]
[1725548764346,1.05057,2379.8,2379.2,3.2078]
[1725548764551,0.42029,2379.5,2379.3,3.2078]
[1725548764737,0.42029,2379.5,2378.6,1.05106]
[1725548764738,3.2078,2379.5,2378.8,3.2078]
[1725548764946,0.42025,2379.7,2379.1,3.2078]
[1725548765140,0.00630902,2379.6,2379.0,3.5]
[1725548765343,4.24634501,2381.1,2379.5,7.7578]
[1725548765539,4.24634501,2381.1,2380.1,7.7578]
[1725548765540,0.42005,2380.8,2380.1,7.7578]
[1725548765742,0.42008,2380.6,2380.2,0.42014]
[1725548766043,1.60480522,2381.2,2380.5,4.55]
[1725548766243,1.60480522,2381.2,2380.4,3.2078]
[1725548766244,4.81260522,2381.9,2381.1,3.2078]
[1725548766439,0.41989,2381.7,2381.4,3.2078]
[1725548766752,0.41994,2381.4,2381.1,3.2078]
[1725548766934,0.41993,2381.5,2381.1,3.2078]
[1725548767137,0.00630902,2381.7,2380.7,3.2078]
[1725548767349,0.42,2381.1,2380.7,3.2078]
[1725548767544,1.04985,2381.4,2380.6,4.55630902]
[1725548767741,1.04985,2381.4,2380.6,8.18418902]
[1725548768041,1.08800902,2381.7,2381.1,0.41998]
[1725548768244,1.08800902,2381.7,2381.0,7.7578]
[1725548768435,1.08800902,2381.7,2381.1,0.41998]
[1725548768635,1.08800902,2381.7,2381.0,7.7578]
[1725548768842,0.41996,2381.3,2380.7,3.62786]
[1725548769036,1.08800902,2381.7,2381.0,3.2078]
[1725548769237,1.08800902,2381.7,2381.0,7.7578]
[1725548769636,1.08800902,2381.7,2381.1,0.41998]
[1725548769840,1.08800902,2381.7,2381.0,7.7578]
[1725548770046,1.08800902,2381.7,2381.4,3.62773]
[1725548770047,0.00630902,2381.7,2381.4,3.62773]
[1725548770345,0.42006,2380.7,2380.6,0.00630902]
[1725548770846,4.81854479,2381.1,2380.6,10.20710902]
[1725548771149,0.42005,2380.8,2380.6,0.00630902]
[1725548771345,0.42006,2380.7,2380.6,0.00630902]
[1725548771552,4.81854479,2381.1,2380.6,0.00630902]
[1725548771553,1.61074479,2381.0,2380.6,0.00630902]
[1725548771738,0.42005,2380.8,2380.6,0.00630902]
[1725548771939,3.62785,2380.8,2380.6,0.00630902]
[1725548772154,1.61074479,2380.9,2380.6,0.00630902]
[1725548772356,4.81854479,2381.1,2380.6,4.20630902]
[1725548772551,0.42002,2381.0,2380.6,0.00630902]
[1725548772745,4.25766,2381.4,2381.1,0.41999]
[1725548772746,1.61074479,2381.4,2381.1,0.41999]
[1725548773058,2.03065479,2381.6,2381.0,0.42]
[1725548773352,0.00630902,2381.7,2381.6,0.4199]
[1725548773549,0.00630902,2381.7,2381.1,4.55]
[1725548773853,0.00630902,2381.7,2381.5,0.41992]
[1725548774066,0.00630902,2381.7,2380.8,4.55]
[1725548774350,0.00630902,2381.7,2381.1,4.55]
[1725548774650,0.00630902,2381.7,2381.6,0.4199]
[1725548774856,0.00630902,2381.7,2381.6,4.6183]
[1725548775046,0.00630902,2381.7,2381.6,11.7004]
[1725548775250,0.00630902,2381.7,2381.6,5.7004]
[1725548775450,0.00630902,2381.7,2381.6,11.7004]
[1725548775648,3.2078,2382.6,2382.1,0.41981]
[1725548775857,3.2078,2382.6,2382.1,4.55]
[1725548776050,3.2078,2382.6,2382.2,0.41979]
[1725548776247,3.2078,2382.6,2382.4,0.41975]
[1725548776552,3.2078,2382.6,2382.1,4.55]
[1725548776553,0.41975,2382.5,2382.1,4.55]
[1725548776746,3.2078,2382.6,2382.1,4.55630902]
[1725548776747,3.03010902,2382.6,2382.1,4.55630902]
[1725548776948,7.04195479,2383.1,2382.1,7.76410902]
[1725548777142,7.04195479,2383.1,2382.5,4.55]
[1725548777143,4.81854479,2383.1,2382.5,4.55]
[1725548777356,0.70634591,2384.0,2383.5,0.41956]
[1725548777559,0.23067739,2384.7,2383.9,7.7578]
[1725548777752,9.90227699,2384.7,2384.1,0.41946]
[1725548778049,2.65154399,2384.1,2384.0,5.38202575]
[1725548778244,2.65154399,2384.1,2383.6,4.55]
[1725548778444,9.90227699,2384.1,2383.6,4.55]
[1725548778646,9.90227699,2384.1,2383.8,0.00629564]
[1725548778647,7.250733,2384.1,2383.8,0.00629564]
[1725548778850,10.458533,2384.1,2383.8,0.00629564]
[1725548779055,2.65154399,2383.9,2383.8,0.00629564]
[1725548779448,9.90227699,2383.9,2383.8,0.00629564]
[1725548779650,6.0,2383.9,2382.8,4.55]
[1725548779852,6.0,2383.9,2382.6,3.2078]
[1725548779853,2.65154399,2382.9,2382.6,3.2078]
[1725548780159,2.65154399,2382.9,2382.5,4.55]
[1725548780160,2.65154399,2382.7,2382.1,4.55]
[1725548780452,7.24443736,2383.1,2382.1,4.55]
[1725548780652,7.24443736,2383.1,2381.9,5.45913153]
[1725548780653,2.65154399,2382.2,2381.9,5.45913153]
[1725548780858,2.65154399,2382.0,2381.3,7.7578]
[1725548781055,3.2078,2382.3,2381.0,7.9718121]
[1725548781056,2.65154399,2381.7,2381.0,7.9718121]
[1725548781252,2.65154399,2381.7,2381.1,3.5]
[1725548781552,3.2078,2382.3,2381.4,7.7578]
[1725548781754,2.65154399,2381.9,2381.4,4.55]
[1725548781956,0.00629564,2381.9,2381.6,3.2078]
[1725548782155,0.00629564,2381.9,2381.7,4.55]
[1725548782355,0.00629564,2381.9,2381.7,8.7484]
[1725548782560,0.00629564,2381.9,2381.8,4.1984]
[1725548782762,0.00629564,2381.9,2381.7,4.55]
[1725548782956,0.00629564,2381.9,2381.7,8.7484]
[1725548783155,0.00629564,2381.9,2381.8,4.61827]
[1725548783364,3.2078,2383.0,2382.2,4.55]
[1725548783554,7.24443736,2383.0,2382.2,7.7578]
[1725548783859,2.65154399,2382.5,2382.2,7.7578]
[1725548784160,2.65154399,2382.8,2382.2,7.7578]
[1725548784365,0.00629564,2382.6,2382.2,7.7578]
[1725548784664,0.00629564,2382.6,2382.5,7.7578]
[1725548784860,0.00629564,2382.6,2382.5,18.37434]
[1725548785050,0.00629564,2382.6,2382.5,24.11466253]
[1725548785051,5.64e-06,2382.6,2382.5,24.11466253]
[1725548785254,5.64e-06,2382.6,2382.5,23.90933351]
[1725548785463,5.64e-06,2382.6,2382.5,11.9546]
[1725548785656,9.89598699,2382.6,2382.5,3.5]
[1725548785966,5.64e-06,2382.6,2382.3,3.2078]
[1725548786152,5.64e-06,2382.6,2382.5,4.55]
[1725548786353,5.64e-06,2382.6,2382.5,4.96974]
[1725548786559,5.64e-06,2382.6,2382.5,14.7468]
[1725548786753,5.64e-06,2382.6,2382.5,15.16654]
[1725548786957,5.64e-06,2382.6,2382.5,20.55613727]
[1725548787265,3.2078,2383.6,2382.9,0.41967]
[1725548787462,2.65154399,2383.5,2383.1,4.55]
[1725548787769,2.65154399,2383.5,2383.1,4.96962]
[1725548787962,2.65154399,2383.3,2383.1,4.55]
[1725548788157,2.65154399,2383.3,2383.1,4.55629564]
[1725548788666,0.00629564,2383.5,2383.1,8.75229564]
[1725548788876,2.65154399,2383.3,2383.1,4.55629564]
[1725548789165,7.250733,2383.5,2383.1,0.00629564]
[1725548789363,2.65154399,2383.3,2383.1,0.00629564]
[1725548790061,2.65154399,2383.3,2383.1,4.55629564]
[1725548790263,0.00629564,2383.5,2383.2,0.41962]
[1725548790468,0.00629564,2383.5,2383.3,0.4196]
[1725548790667,0.00629564,2383.5,2383.2,0.41961]
[1725548790969,0.00629564,2383.5,2383.1,7.76409564]
[1725548791163,0.00629564,2383.5,2383.4,0.41958]
[1725548791359,3.2078,2384.6,2383.4,9.2078]
[1725548791565,13.10378135,2384.6,2384.1,7.7578]
[1725548791765,13.10378135,2384.6,2384.1,4.55]
[1725548792068,3.2078,2385.2,2384.9,0.41931]
[1725548792267,2.65154399,2385.4,2385.0,0.4193]
[1725548792565,2.65154399,2385.0,2384.8,0.00629564]
[1725548792766,3.21409564,2385.3,2384.8,0.00629564]
[1725548792767,0.00629564,2385.3,2384.8,0.00629564]
[1725548792968,2.65154399,2385.0,2384.8,0.00629564]
[1725548793167,3.2078,2384.9,2384.8,0.00629564]
[1725548793362,2.65154399,2385.0,2384.8,0.00629564]
[1725548793760,9.89598135,2385.0,2384.8,0.00629564]
[1725548793971,3.07086399,2384.9,2384.8,0.00629564]
[1725548794164,3.07086399,2384.9,2384.7,3.5]
[1725548794165,6.27866399,2384.9,2384.7,3.5]
[1725548794469,2.65154399,2384.8,2384.2,4.55]
[1725548794663,2.65154399,2384.6,2384.4,0.4194]
[1725548794858,1.1121,2385.2,2384.6,4.55]
[1725548795068,11.00808135,2385.2,2384.6,7.7578]
[1725548795271,11.00808135,2385.2,2384.7,0.00629564]
[1725548795566,9.89598135,2385.2,2384.7,0.00629564]
[1725548795765,3.21409564,2385.3,2385.0,4.55]
[1725548795967,3.21409564,2385.3,2385.2,0.41927]
[1725548796373,3.21409564,2385.3,2385.1,0.41928]
[1725548796871,0.00629564,2385.3,2385.0,4.55]
[1725548797165,0.00629564,2385.3,2385.2,0.41927]
[1725548797374,0.00629564,2385.3,2385.2,9.62707]
[1725548797564,0.00629564,2385.3,2385.2,13.81987]
[1725548797764,0.00629564,2385.3,2385.0,4.55]
[1725548797765,3.07708963,2385.3,2385.0,4.55]
[1725548797962,7.250733,2385.3,2385.0,4.55]
[1725548798165,2.65154399,2385.1,2385.0,4.55]
[1725548798374,0.41932,2385.0,2384.7,0.00629564]
[1725548798671,0.41934,2384.8,2384.7,0.00629564]
[1725548798973,3.07088399,2384.8,2384.7,0.00629564]
[1725548799275,10.31532135,2384.8,2384.7,0.00629564]
[1725548799662,5.34852,2385.2,2384.7,4.19989564]
[1725548799663,1.0925,2385.2,2384.7,4.19989564]
[1725548799863,10.98848135,2385.2,2385.0,4.96929]
[1725548800572,10.98848135,2385.2,2385.0,4.9693]
[1725548800778,8.75620736,2385.2,2385.0,4.55]
[1725548801069,0.41933,2384.9,2384.7,0.00629564]
[1725548801371,2.65154399,2385.1,2384.7,0.00629564]
[1725548801372,2.65154399,2385.0,2384.7,0.00629564]
[1725548801669,1.0484,2384.7,2383.6,3.62734]
[1725548801859,1.0484,2384.7,2383.7,4.55]
[1725548801860,2.65154399,2384.1,2383.7,4.55]
[1725548802060,3.07101399,2384.1,2383.7,4.55]
[1725548802267,0.41951,2383.8,2383.7,4.55]
[1725548802677,0.41951,2383.8,2383.5,0.00629564]
[1725548802678,9.89598135,2383.8,2383.5,0.00629564]
[1725548802971,2.65154399,2383.6,2383.5,0.00629564]
[1725548803174,2.65154399,2383.6,2383.0,4.55]
[1725548803368,0.41965,2383.1,2382.7,0.41971]
[1725548803672,2.65154399,2383.2,2382.6,4.55]
[1725548803973,2.65154399,2382.9,2382.6,4.55]
[1725548804369,0.41957,2383.5,2383.0,0.41965]
[1725548804574,2.65154399,2383.1,2383.0,4.55]
[1725548805369,3.2078,2383.6,2383.0,4.55]
[1725548805575,2.65154399,2383.3,2383.0,4.55]
[1725548805875,2.65154399,2383.1,2382.6,4.55]
[1725548806074,2.65154399,2382.9,2382.6,4.96972]
[1725548806382,2.65154399,2382.8,2382.6,4.96972]
[1725548806564,2.65154399,2382.8,2382.7,0.41971]
[1725548806868,3.2078,2383.0,2382.9,0.41967]
[1725548807070,1.1685,2383.4,2382.9,4.1968]
[1725548807273,8.41293736,2383.4,2383.2,4.55]
[1725548807568,2.65154399,2383.3,2383.2,4.96962]
[1725548808167,10.31558135,2383.3,2383.2,4.55]
[1725548808363,0.41967,2383.0,2382.8,4.55]
[1725548808564,2.65154399,2382.8,2382.5,0.00629564]
[1725548808771,3.07127399,2382.6,2382.5,0.00629564]
[1725548809082,2.65154399,2382.7,2382.6,0.41971]
[1725548809381,0.00629564,2382.8,2382.5,4.55629564]
[1725548809767,0.00629564,2382.8,2382.7,0.41971]
[1725548810472,2.65783963,2382.8,2382.6,0.41972]
[1725548810771,2.65783963,2382.8,2382.5,4.55629564]
[1725548810772,2.65783963,2382.8,2382.7,0.41971]
[1725548810973,0.00629564,2382.8,2382.7,0.41971]
[1725548811176,0.00629564,2382.8,2382.7,5.66579]
[1725548811370,0.00629564,2382.8,2382.7,4.61651]
[1725548811571,9.90227699,2382.8,2382.7,0.41971]
[1725548811877,0.00629564,2382.8,2382.7,0.41971]
[1725548812466,0.00629564,2382.8,2382.7,5.66579]
[1725548812672,0.00629564,2382.8,2382.7,11.66579]
[1725548813175,0.00629564,2382.8,2382.7,0.41971]
[1725548813676,0.00629564,2382.8,2382.7,1.46899]
[1725548814372,0.00629564,2382.8,2382.7,0.41971]
[1725548814572,9.90227699,2382.8,2382.7,0.41971]
[1725548814880,9.90227699,2382.8,2382.5,4.55629564]
[1725548815178,7.250733,2382.8,2382.7,0.41971]
[1725548815571,9.90227699,2382.8,2382.7,0.41971]
[1725548816176,9.90227699,2382.8,2382.6,0.41971]
[1725548816367,7.250733,2382.8,2382.7,0.41971]
[1725548816575,7.250733,2382.8,2382.5,4.55629564]
[1725548816576,2.65154399,2382.6,2382.5,4.55629564]
[1725548816779,9.89598135,2382.6,2382.5,4.55629564]
[1725548816975,10.31571135,2382.6,2382.5,0.00629564]
[1725548817179,9.89598135,2382.6,2382.5,0.00629564]
[1725548817376,9.89598135,2382.6,2382.5,0.42603564]
[1725548817573,2.65154399,2382.6,2382.5,0.42603564]
[1725548817769,0.00629564,2382.8,2382.6,0.41971]
[1725548817965,0.00629564,2382.8,2382.5,4.97603564]
[1725548817966,2.65154399,2382.6,2382.5,4.97603564]
[1725548818373,9.89598135,2382.6,2382.5,0.00629564]
[1725548818573,9.89598135,2382.6,2382.5,0.42603564]
[1725548819091,10.31571135,2382.6,2382.5,0.00629564]
[1725548819279,9.89598135,2382.6,2382.5,0.00629564]
[1725548819473,10.31571135,2382.6,2382.5,0.00629564]
[1725548819972,9.89598135,2382.6,2382.5,0.42603564]
[1725548820376,0.00629564,2382.8,2382.6,0.41972]
[1725548820578,3.07127399,2382.6,2382.5,0.00629564]
[1725548820878,4.12059399,2382.6,2382.5,0.00629564]
[1725548821072,10.31571135,2382.6,2382.5,0.00629564]
[1725548821468,9.89598135,2382.6,2382.5,0.00629564]
[1725548821678,9.89598135,2382.6,2382.5,0.42603564]
[1725548823173,0.00629564,2382.8,2382.7,0.41971]
[1725548823484,7.250733,2382.8,2382.7,0.41971]
[1725548823679,0.00629564,2382.8,2382.7,8.87359]
[1725548824073,5.64e-06,2382.8,2382.7,9.92287]
[1725548824274,1.1071,2383.8,2383.7,0.41953]
[1725548824580,1.1071,2383.8,2383.5,4.55]
[1725548824581,2.65154399,2383.6,2383.5,4.55]
[1725548824774,2.65154399,2383.6,2383.5,4.96957]
[1725548825576,0.00629564,2383.8,2383.7,0.41953]
[1725548825780,0.00629564,2383.8,2383.6,0.41954]
[1725548825781,2.65154399,2383.7,2383.6,0.41954]
[1725548826177,0.00629564,2383.8,2383.6,3.2078]
[1725548826477,3.2078,2384.6,2383.6,17.34230342]
[1725548826683,1.0482,2385.2,2383.5,4.55]
[1725548826684,2.65154399,2383.7,2383.5,4.55]
[1725548827077,2.65154399,2383.6,2383.5,4.55]
[1725548827583,15.89598135,2383.6,2383.3,0.00629564]
[1725548827782,0.41965,2383.1,2382.5,4.55]
[1725548828083,2.65154399,2382.7,2382.6,3.5]
[1725548828277,2.65154399,2382.7,2382.6,0.41973]
[1725548828588,9.89598135,2382.7,2382.5,4.55]
[1725548828781,2.65154399,2382.6,2382.5,4.55]
[1725548828977,2.65154399,2382.6,2382.4,0.00629564]
[1725548829178,2.65154399,2382.5,2382.4,0.00629564]
[1725548829377,10.31572135,2382.5,2382.4,0.00629564]
[1725548829583,9.89598135,2382.5,2381.8,4.55]
[1725548829777,2.65154399,2382.1,2381.8,4.55]
[1725548829975,7.24443736,2382.5,2382.4,0.41976]
[1725548830289,7.24443736,2382.5,2381.9,3.5]
[1725548830290,3.2078,2383.3,2382.3,3.2078]
[1725548830474,10.87183736,2383.3,2382.9,0.41966]
[1725548830674,2.65154399,2383.0,2382.9,0.42596564]
[1725548830886,2.65154399,2383.0,2382.9,0.00629564]
[1725548831085,9.89598135,2383.0,2382.9,0.00629564]
[1725548831383,0.00629564,2383.3,2382.9,0.00629564]
[1725548831584,2.65783963,2383.3,2383.2,0.41962]
[1725548831777,9.90227699,2383.3,2383.2,0.41962]
[1725548831976,2.65783963,2383.3,2383.2,0.41962]
[1725548832378,0.00629564,2383.3,2383.2,0.41962]
[1725548832586,2.65783963,2383.3,2383.2,0.41962]
[1725548832782,9.90227699,2383.3,2383.0,8.17745]
[1725548832990,2.65154399,2383.1,2383.0,4.55]
[1725548833288,2.65154399,2383.1,2382.9,0.00629564]
[1725548833485,2.65154399,2383.0,2382.9,0.00629564]
[1725548833976,9.89598135,2383.0,2382.9,0.00629564]
[1725548834576,9.89598135,2383.0,2382.9,0.42596564]
[1725548834777,0.00629564,2383.3,2382.9,0.00629564]
[1725548834982,2.65154399,2383.2,2383.1,4.96963]
[1725548835180,0.00629564,2383.3,2383.2,0.41962]
[1725548835388,3.62729,2384.0,2383.5,0.41956]
[1725548835690,2.65154399,2383.6,2383.1,4.55]
[1725548835879,2.65154399,2383.4,2383.3,0.4196]
[1725548836075,2.65154399,2383.5,2383.4,4.96957]
[1725548836476,9.89598135,2383.5,2383.1,3.62743]
[1725548836681,2.65154399,2383.2,2383.1,3.2078]
[1725548836885,2.65154399,2383.2,2383.1,0.41963]
[1725548837081,2.65154399,2383.2,2383.0,4.55]
[1725548837276,2.65154399,2383.1,2382.9,0.00629564]
[1725548837483,2.65154399,2383.0,2382.9,0.00629564]
[1725548837680,2.65154399,2383.0,2382.9,0.42596564]
[1725548837981,9.89598135,2383.0,2382.9,0.00629564]
[1725548838387,9.89598135,2383.0,2382.9,0.42596564]
[1725548838579,9.89598135,2383.0,2382.9,0.00629564]
[1725548838786,9.89598135,2383.0,2382.9,0.42596564]
[1725548838992,9.89598135,2383.0,2382.9,0.00629564]
[1725548839188,10.31564135,2383.0,2382.9,0.00629564]
[1725548839395,10.31564135,2383.0,2381.9,5.15362]
[1725548839396,1.04919,2382.9,2382.1,3.6276]
[1725548839681,2.65154399,2382.3,2382.2,0.4198]
[1725548840090,9.89598135,2382.3,2382.0,4.55]
[1725548840277,9.89598135,2382.3,2382.0,0.41983]
[1725548840278,2.65154399,2382.1,2382.0,0.41983]
[1725548840479,2.65154399,2382.1,2381.9,0.41984]
[1725548840688,2.65154399,2381.9,2381.8,3.21409564]
[1725548841088,13.10378135,2381.9,2381.8,0.00629564]
[1725548841295,13.52363135,2381.9,2381.8,0.00629564]
[1725548841793,13.52363135,2381.9,2380.8,3.2078]
[1725548841794,2.65154399,2381.4,2380.8,3.2078]
[1725548842089,2.65154399,2381.1,2381.0,0.42]
[1725548842289,3.2078,2381.6,2380.8,7.97270091]
[1725548842290,2.65154399,2381.3,2380.8,7.97270091]
[1725548842490,2.65154399,2381.3,2381.2,4.96996]
[1725548842689,4.3212,2382.1,2381.2,4.55]
[1725548842987,2.65154399,2381.8,2381.7,0.41988]
[1725548843287,2.65154399,2381.9,2381.7,0.41987]
[1725548843497,2.65154399,2382.0,2381.8,0.41987]
[1725548843687,2.65154399,2382.0,2381.5,4.55]
[1725548843880,2.65154399,2382.0,2381.9,4.96985]
[1725548844589,0.00629564,2382.3,2382.1,0.41981]
[1725548844790,0.00629564,2382.3,2381.9,4.55]
[1725548844791,2.65154399,2382.1,2381.9,4.55]
[1725548844986,2.65154399,2382.1,2382.0,0.41983]
[1725548845181,0.00629564,2382.3,2382.2,0.4198]
[1725548845383,2.67861999,2383.3,2382.2,0.4198]
[1725548845384,6.30601999,2383.4,2382.8,0.41968]
[1725548845582,6.30601999,2383.4,2382.8,4.96968]
[1725548845583,2.65154399,2382.9,2382.8,4.96968]
[1725548845991,2.65154399,2382.9,2382.8,4.55]
[1725548846580,2.65154399,2382.9,2382.6,3.63380564]
[1725548846581,5.76567135,2382.9,2382.6,0.00629564]
[1725548846796,2.65154399,2382.7,2382.6,0.00629564]
[1725548847087,2.65154399,2382.7,2382.6,3.50629564]
[1725548847291,5.34598135,2382.7,2382.6,3.50629564]
[1725548847487,5.76569135,2382.7,2382.6,0.00629564]
[1725548847686,8.55378135,2382.7,2382.6,0.00629564]
[1725548847893,5.76569135,2382.7,2382.6,0.00629564]
[1725548848095,12.52278135,2382.7,2382.2,3.5]
[1725548848298,2.65154399,2382.2,2382.1,4.55]
[1725548848492,5.34598135,2382.2,2382.1,4.55]
[1725548848684,0.41982,2382.1,2381.7,4.55]
[1725548848886,5.34598135,2382.2,2381.8,3.5]
[1725548848887,2.69443736,2382.2,2381.8,3.5]
[1725548849191,2.69443736,2382.2,2381.4,4.96992]